fUSD/lending_fUSD_20240327
["ID","MTS","AMOUNT","RATE_DAILY","PERIOD"]
[320743972,1711543888446,-1225.44,0.0005589,120]
[320743973,1711543888455,-500.0,0.0005589,120]
[320743974,1711543888464,-676.46,0.0005589,120]
[320743975,1711543888474,-1233.43,0.0005589,120]
[320743976,1711543888483,-500.0,0.0005589,120]
[320743977,1711543888493,-2528.31,0.0005589,120]
[320743978,1711543888502,-500.0,0.0005589,120]
[320743979,1711543888512,-500.0,0.0005589,120]
[320743980,1711543888521,-500.0,0.0005589,120]
[320743981,1711543888531,-1659.22,0.0005589,120]
[320743982,1711543888541,-1083.78,0.0005589,120]
[320743983,1711543888551,-11741.46,0.0005589,120]
[320743984,1711543888561,-2180.01,0.0005589,120]
[320743985,1711543888571,-500.0,0.0005589,120]
[320743986,1711543888581,-1845.88,0.0005589,120]
[320743987,1711543888591,-584.47,0.0005589,120]
[320743988,1711543888603,-8083.93,0.0005589,120]
[320743989,1711543888613,-3516.57,0.0005589,120]
[320743990,1711543888622,-2618.08,0.0005589,120]
[320743991,1711543888632,-3201.11,0.0005589,120]
[320743992,1711543888643,-281.47206002,0.0005589,120]
[320743993,1711543888653,-463.05279487,0.0005589,120]
[320743994,1711543888664,-500.0,0.0005589,120]
[320743995,1711543888673,-650.65,0.0005589,120]
[320743996,1711543888683,-500.0,0.0005589,120]
[320743997,1711543888693,-3063.83,0.0005589,120]
[320743998,1711543888703,-500.0,0.0005589,120]
[320743999,1711543888714,-500.0,0.0005589,120]
[320744000,1711543888723,-1350.19,0.0005589,120]
[320744001,1711543888735,-1927.24,0.0005589,120]
[320744002,1711543888746,-901.69,0.0005589,120]
[320744003,1711543888756,-544.48,0.0005589,120]
[320744004,1711543888766,-2225.83,0.0005589,120]
[320744005,1711543888776,-500.0,0.0005589,120]
[320744006,1711543888786,-1141.16,0.0005589,120]
[320744007,1711543888797,-500.0,0.0005589,120]
[320744008,1711543888808,-1139.26,0.0005589,120]
[320744009,1711543888818,-832.09,0.0005589,120]
[320744010,1711543888828,-2166.83,0.0005589,120]
[320744011,1711543888839,-500.0,0.0005589,120]
[320744012,1711543888851,-3156.0,0.0005589,120]
[320744013,1711543888861,-596.08,0.0005589,120]
[320744014,1711543888872,-2931.63,0.0005589,120]
[320744015,1711543888882,-666.49,0.0005589,120]
[320744016,1711543888892,-937.27,0.0005589,120]
[320744017,1711543888902,-500.0,0.0005589,120]
[320744018,1711543888912,-1458.74,0.0005589,120]
[320744019,1711543888922,-2453.89,0.0005589,120]
[320744020,1711543888932,-1502.260086,0.0005596,27]
[320744021,1711543888941,-6394.3169252,0.00055962,2]
[320744022,1711543888951,-1000.0,0.0005598,27]
[320744023,1711543888960,-266.34007128,0.00056,30]
[320744024,1711543888970,-151.0,0.00056,120]
[320744025,1711543888979,-151.0,0.00056,120]
[320744026,1711543888989,-176.231198,0.00056,120]
[320744027,1711543888998,-151.0,0.00056,120]
[320744028,1711543889007,-151.0,0.00056,120]
[320744029,1711543889016,-151.0,0.00056,120]
[320744030,1711543889026,-157373.81950949,0.00056,120]
[320744031,1711543889035,-1000.0,0.00056,27]
[320744032,1711543889045,-150.0,0.00056103,2]
[320744033,1711543889054,-382.854,0.00056103,120]
[320744034,1711543889063,-166.56049651,0.0005611,120]
[320744035,1711543889073,-507.0,0.00056137,120]
[320744036,1711543889082,-522.2,0.00056164,120]
[320744037,1711543889092,-2000.0,0.00056164,120]
[320744038,1711543889103,-500.0,0.00056164,120]
[320744039,1711543889112,-500.0,0.00056164,120]
[320744040,1711543889122,-500.0,0.00056164,120]
[320744041,1711543889131,-500.0,0.00056164,120]
[320744042,1711543889140,-500.0,0.00056164,120]
[320744043,1711543889150,-500.0,0.00056164,120]
[320744044,1711543889159,-585.22,0.00056164,120]
[320744045,1711543889169,-500.0,0.00056164,120]
[320744046,1711543889178,-663.06,0.00056164,120]
[320744047,1711543889187,-500.0,0.00056164,120]
[320744048,1711543889197,-391.54,0.00056164,120]
[320744049,1711543889206,-587.11,0.00056164,120]
[320744050,1711543889215,-500.0,0.00056164,120]
[320744051,1711543889225,-500.0,0.00056164,120]
[320744052,1711543889235,-500.0,0.00056164,120]
[320744053,1711543889244,-500.0,0.00056164,120]
[320744054,1711543889254,-597.38,0.00056164,120]
[320744055,1711543889263,-552.78,0.00056164,120]
[320744056,1711543889272,-616.91,0.00056164,120]
[320744057,1711543889282,-500.0,0.00056164,120]
[320744058,1711543889291,-500.0,0.00056164,120]
[320744059,1711543889301,-695.95,0.00056164,120]
[320744060,1711543889310,-500.0,0.00056164,120]
[320744061,1711543889320,-500.0,0.00056164,120]
[320744062,1711543889329,-530.5,0.00056164,120]
[320744063,1711543889338,-500.05,0.00056164,120]
[320744064,1711543889350,-500.0,0.00056164,120]
[320744065,1711543889359,-500.0,0.00056164,120]
[320744066,1711543889369,-500.0,0.00056164,120]
[320744067,1711543889378,-500.0,0.00056164,120]
[320744068,1711543889388,-500.0,0.00056164,120]
[320744069,1711543889397,-500.0,0.00056164,120]
[320744070,1711543889406,-518.1,0.00056164,120]
[320744071,1711543889416,-500.0,0.00056164,120]
[320744072,1711543889425,-500.0,0.00056164,120]
[320744073,1711543889435,-500.0,0.00056164,120]
[320744074,1711543889445,-613.86,0.00056164,120]
[320744075,1711543889454,-500.0,0.00056164,120]
[320744076,1711543889464,-526.24,0.00056164,120]
[320744077,1711543889474,-500.0,0.00056164,120]
[320744078,1711543889483,-500.0,0.00056164,120]
[320744079,1711543889493,-500.0,0.00056164,120]
[320744080,1711543889503,-500.0,0.00056164,120]
[320744081,1711543889513,-509.36,0.00056164,120]
[320744082,1711543889524,-669.48,0.00056164,120]
[320744083,1711543889534,-500.0,0.00056164,120]
[320744084,1711543889543,-525.09,0.00056164,120]
[320744085,1711543889553,-500.0,0.00056164,120]
[320744086,1711543889562,-500.0,0.00056164,120]
[320744087,1711543889572,-500.0,0.00056164,120]
[320744088,1711543889582,-500.0,0.00056164,120]
[320744089,1711543889592,-500.0,0.00056164,120]
[320744090,1711543889606,-516.74,0.00056164,120]
[320744091,1711543889616,-500.0,0.00056164,120]
[320744092,1711543889626,-500.0,0.00056164,120]
[320744093,1711543889636,-500.0,0.00056164,120]
[320744094,1711543889647,-500.0,0.00056164,120]
[320744095,1711543889660,-500.0,0.00056164,120]
[320744096,1711543889671,-500.0,0.00056164,120]
[320744097,1711543889681,-500.0,0.00056164,120]
[320744098,1711543889692,-1126.03,0.00056164,120]
[320744099,1711543889703,-620.43,0.00056164,120]
[320744100,1711543889713,-500.0,0.00056164,120]
[320744101,1711543889724,-1965.76,0.00056164,120]
[320744102,1711543889735,-500.0,0.00056164,120]
[320744103,1711543889747,-921.37,0.00056164,120]
[320744104,1711543889757,-2740.9,0.00056164,120]
[320744105,1711543889767,-500.0,0.00056164,120]
[320744106,1711543889777,-5471.51,0.00056164,120]
[320744107,1711543889787,-500.0,0.00056164,120]
[320744108,1711543889797,-500.0,0.00056164,120]
[320744109,1711543889807,-318.98,0.00056164,120]
[320744110,1711543889817,-884.38,0.00056164,120]
[320744111,1711543889827,-500.0,0.00056164,120]
[320744112,1711543889837,-1170.95,0.00056164,120]
[320744113,1711543889849,-500.0,0.00056164,120]
[320744114,1711543889860,-1057.95,0.00056164,120]
[320744115,1711543890036,-533.04,0.00056164,120]
[320744116,1711543890062,-2051.46,0.00056164,120]
[320744117,1711543890071,-151.0,0.00056164,30]
[320744118,1711543890081,-500.0,0.00056164,120]
[320744119,1711543890091,-500.0,0.00056164,120]
[320744120,1711543890102,-500.0,0.00056164,120]
[320744121,1711543890112,-702.45,0.00056164,120]
[320744122,1711543890122,-545.51,0.00056164,120]
[320744123,1711543890132,-931.2,0.00056164,120]
[320744124,1711543890142,-3285.02,0.00056164,120]
[320744125,1711543890153,-512.74,0.00056164,120]
[320744126,1711543890163,-324.28,0.00056164,120]
[320744127,1711543890174,-596.37,0.00056164,120]
[320744128,1711543890184,-500.0,0.00056164,120]
[320744129,1711543890195,-500.0,0.00056164,120]
[320744130,1711543890205,-500.0,0.00056164,120]
[320744131,1711543890216,-643.73,0.00056164,120]
[320744132,1711543890227,-537.16385715,0.00056164,120]
[320744133,1711543890237,-503.92,0.00056164,120]
[320744134,1711543890248,-500.0,0.00056164,120]
[320744135,1711543890259,-500.0,0.00056164,120]
[320744136,1711543890269,-500.0,0.00056164,120]
[320744137,1711543890280,-604.98,0.00056164,120]
[320744138,1711543890290,-500.0,0.00056164,120]
[320744139,1711543890301,-668.88,0.00056164,120]
[320744140,1711543890311,-1068.26,0.00056164,120]
[320744141,1711543890321,-792.02,0.00056164,120]
[320744142,1711543890331,-956.84,0.00056164,120]
[320744143,1711543890342,-1164.57,0.00056164,120]
[320744144,1711543890355,-500.0,0.00056164,120]
[320744145,1711543890365,-663.5,0.00056164,120]
[320744146,1711543890375,-500.0,0.00056164,120]
[320744147,1711543890386,-575.0,0.00056164,120]
[320744148,1711543890396,-1108.61,0.00056164,120]
[320744149,1711543890407,-1061.65,0.00056164,120]
[320744150,1711543890416,-865.88,0.00056164,120]
[320744151,1711543890426,-500.0,0.00056164,120]
[320744152,1711543890437,-500.0,0.00056164,120]
[320744153,1711543890447,-500.0,0.00056164,120]
[320744154,1711543890456,-500.0,0.00056164,120]
[320744155,1711543890467,-500.0,0.00056164,120]
[320744156,1711543890476,-2925.46,0.00056164,120]
[320744157,1711543890486,-500.0,0.00056164,120]
[320744158,1711543890495,-500.0,0.00056164,120]
[320744159,1711543890505,-500.0,0.00056164,120]
[320744160,1711543890514,-798.22,0.00056164,120]
[320744161,1711543890524,-670.39,0.00056164,120]
[320744162,1711543890534,-1050.1,0.00056164,120]
[320744163,1711543890544,-698.77,0.00056164,120]
[320744164,1711543890554,-831.36,0.00056164,60]
[320744165,1711543890564,-813.47,0.00056164,120]
[320744166,1711543890574,-805.48,0.00056164,120]
[320744167,1711543890584,-895.29,0.00056164,120]
[320744168,1711543890594,-566.16,0.00056164,120]
[320744169,1711543890606,-500.0,0.00056164,120]
[320744170,1711543890615,-1059.6,0.00056164,120]
[320744171,1711543890625,-2482.66,0.00056164,120]
[320744172,1711543890635,-500.0,0.00056164,120]
[320744173,1711543890646,-624.76,0.00056164,120]
[320744174,1711543890657,-1090.65,0.00056164,120]
[320744175,1711543890668,-500.0,0.00056164,120]
[320744176,1711543890685,-596.27,0.00056164,120]
[320744177,1711543890707,-730.57,0.00056164,120]
[320744178,1711543890729,-500.0,0.00056164,120]
[320744179,1711543890750,-532.43,0.00056164,120]
[320744180,1711543890773,-500.0,0.00056164,120]
[320744181,1711543890795,-1096.84,0.00056164,120]
[320744182,1711543890817,-982.22,0.00056164,120]
[320744183,1711543890834,-500.0,0.00056164,120]
[320744184,1711543890844,-2012.56,0.00056164,120]
[320744185,1711543890856,-500.0,0.00056164,120]
[320744186,1711543890866,-569.67609665,0.00056164,120]
[320744187,1711543890876,-2118.58,0.00056164,120]
[320744188,1711543890886,-888.32,0.00056164,120]
[320744189,1711543890897,-500.0,0.00056164,120]
[320744190,1711543890908,-500.0,0.00056164,120]
[320744191,1711543890917,-843.94,0.00056164,120]
[320744192,1711543890928,-952.22,0.00056164,120]
[320744193,1711543890937,-2323.15,0.00056164,120]
[320744194,1711543890947,-500.0,0.00056164,120]
[320744195,1711543890957,-670.15,0.00056164,120]
[320744196,1711543890966,-1267.74,0.00056164,120]
[320744197,1711543890976,-646.84,0.00056164,120]
[320744198,1711543890985,-500.0,0.00056164,120]
[320744199,1711543890995,-1027.05,0.00056164,120]
[320744200,1711543891004,-508.56,0.00056164,120]
[320744201,1711543891015,-500.0,0.00056164,120]
[320744202,1711543891025,-500.0,0.00056164,120]
[320744203,1711543891035,-1044.31,0.00056164,120]
[320744204,1711543891045,-431.96,0.00056164,120]
[320744205,1711543891055,-2014.61,0.00056164,120]
[320744206,1711543891065,-500.0,0.00056164,120]
[320744207,1711543891075,-852.33,0.00056164,120]
[320744208,1711543891086,-288.34,0.00056164,120]
[320744209,1711543891095,-500.0,0.00056164,120]
[320744210,1711543891106,-632.68,0.00056164,120]
[320744211,1711543891116,-500.0,0.00056164,120]
[320744212,1711543891126,-500.0,0.00056164,120]
[320744213,1711543891135,-500.0,0.00056164,120]
[320744214,1711543891145,-509.92,0.00056164,120]
[320744215,1711543891155,-500.0,0.00056164,120]
[320744216,1711543891165,-797.02,0.00056164,30]
[320744217,1711543891174,-500.0,0.00056164,120]
[320744218,1711543891184,-693.91,0.00056164,120]
[320744219,1711543891194,-818.9,0.00056164,120]
[320744220,1711543891204,-903.82,0.00056164,120]
[320744221,1711543891214,-500.0,0.00056164,120]
[320744222,1711543891223,-500.0,0.00056164,120]
[320744223,1711543891233,-500.0,0.00056164,120]
[320744224,1711543891243,-734.77,0.00056164,120]
[320744225,1711543891253,-500.0,0.00056164,120]
[320744226,1711543891263,-645.24,0.00056164,120]
[320744227,1711543891272,-763.33,0.00056164,120]
[320744228,1711543891281,-587.45,0.00056164,120]
[320744229,1711543891292,-785.61,0.00056164,120]
[320744230,1711543891301,-608.04,0.00056164,120]
[320744231,1711543891311,-500.0,0.00056164,120]
[320744232,1711543891320,-713.05,0.00056164,120]
[320744233,1711543891330,-617.32,0.00056164,120]
[320744234,1711543891339,-524.62,0.00056164,120]
[320744235,1711543891351,-1415.79,0.00056164,120]
[320744236,1711543891361,-788.63,0.00056164,120]
[320744237,1711543891371,-2273.07,0.00056164,120]
[320744238,1711543891380,-500.0,0.00056164,120]
[320744239,1711543891390,-2011.71,0.00056164,120]
[320744240,1711543891399,-500.0,0.00056164,120]
[320744241,1711543891408,-677.22,0.00056164,120]
[320744242,1711543891418,-500.0,0.00056164,120]
[320744243,1711543891428,-807.51,0.00056164,120]
[320744244,1711543891438,-500.0,0.00056164,120]
[320744245,1711543891448,-800.48,0.00056164,120]
[320744246,1711543891458,-755.18,0.00056164,120]
[320744247,1711543891468,-500.0,0.00056164,120]
[320744248,1711543891479,-459.37459458,0.00056164,120]
[320744249,1711543891488,-842.7,0.00056164,120]
[320744250,1711543891498,-1004.28,0.00056164,120]
[320744251,1711543891508,-2063.63,0.00056164,120]
[320744252,1711543891518,-500.0,0.00056164,120]
[320744253,1711543891528,-500.0,0.00056164,120]
[320744254,1711543891539,-500.0,0.00056164,120]
[320744255,1711543891549,-500.0,0.00056164,120]
[320744256,1711543891558,-500.0,0.00056164,120]
[320744257,1711543891568,-500.0,0.00056164,120]
[320744258,1711543891579,-500.0,0.00056164,120]
[320744259,1711543891588,-676.12,0.00056164,120]
[320744260,1711543891600,-500.0,0.00056164,120]
[320744261,1711543891610,-500.0,0.00056164,120]
[320744262,1711543891620,-571.02,0.00056164,120]
[320744263,1711543891629,-500.0,0.00056164,120]
[320744264,1711543891639,-500.0,0.00056164,120]
[320744265,1711543891649,-500.0,0.00056164,120]
[320744266,1711543891663,-500.0,0.00056164,120]
[320744267,1711543891673,-168.7,0.00056164,120]
[320744268,1711543891683,-559.56,0.00056164,120]
[320744269,1711543891695,-500.0,0.00056164,120]
[320744270,1711543891705,-406.5,0.00056164,120]
[320744271,1711543891723,-500.0,0.00056164,120]
[320744272,1711543891737,-760.12,0.00056164,120]
[320744273,1711543891748,-2308.15,0.00056164,120]
[320744274,1711543891758,-2030.15,0.00056164,120]
[320744275,1711543891784,-500.0,0.00056164,120]
[320744276,1711543891806,-895.23,0.00056164,120]
[320744277,1711543891824,-615.23,0.00056164,120]
[320744278,1711543891842,-500.0,0.00056164,120]
[320744279,1711543891862,-500.0,0.00056164,120]
[320744280,1711543891879,-151.0,0.00056164,120]
[320744281,1711543891897,-500.0,0.00056164,120]
[320744282,1711543891912,-500.0,0.00056164,120]
[320744283,1711543891929,-500.0,0.00056164,120]
[320744284,1711543891944,-988.02,0.00056164,120]
[320744285,1711543891961,-343.32,0.00056164,120]
[320744286,1711543891973,-500.0,0.00056164,120]
[320744287,1711543891989,-1436.62,0.00056164,120]
[320744288,1711543892007,-212.36,0.00056164,120]
[320744289,1711543892024,-500.0,0.00056164,120]
[320744290,1711543892038,-783.0,0.00056164,120]
[320744291,1711543892053,-500.0,0.00056164,120]
[320744292,1711543892070,-501.42,0.00056164,120]
[320744293,1711543892087,-500.0,0.00056164,120]
[320744294,1711543892104,-500.0,0.00056164,120]
[320744295,1711543892115,-1016.45,0.00056164,120]
[320744296,1711543892128,-521.03,0.00056164,120]
[320744297,1711543892145,-612.71,0.00056164,120]
[320744298,1711543892162,-545.88,0.00056164,120]
[320744299,1711543892175,-877.53,0.00056164,120]
[320744300,1711543892190,-435.68,0.00056164,120]
[320744301,1711543892204,-10990.32,0.00056164,120]
[320744302,1711543892217,-500.0,0.00056164,120]
[320744303,1711543892231,-500.0,0.00056164,120]
[320744304,1711543892246,-500.0,0.00056164,120]
[320744305,1711543892260,-500.0,0.00056164,120]
[320744306,1711543892275,-2044.63,0.00056164,120]
[320744307,1711543892290,-523.74585134,0.00056164,7]
[320744308,1711543892305,-500.0,0.00056164,120]
[320744309,1711543892320,-4311.07,0.00056164,120]
[320744310,1711543892335,-500.0,0.00056164,120]
[320744311,1711543892350,-1347.96,0.00056164,120]
[320744312,1711543892364,-500.0,0.00056164,120]
[320744313,1711543892377,-500.0,0.00056164,120]
[320744314,1711543892390,-500.0,0.00056164,120]
[320744315,1711543892403,-500.0,0.00056164,120]
[320744316,1711543892416,-151.0,0.00056164,120]
[320744317,1711543892429,-976.2,0.00056164,120]
[320744318,1711543892441,-1434.29,0.00056164,120]
[320744319,1711543892455,-839.83,0.00056164,120]
[320744320,1711543892468,-7133.78,0.00056164,120]
[320744321,1711543892481,-500.0,0.00056164,120]
[320744322,1711543892494,-545.62,0.00056164,120]
[320744323,1711543892507,-500.0,0.00056164,120]
[320744324,1711543892519,-500.0,0.00056164,120]
[320744325,1711543892532,-500.0,0.00056164,120]
[320744326,1711543892545,-500.0,0.00056164,120]
[320744327,1711543892558,-500.0,0.00056164,120]
[320744328,1711543892571,-500.0,0.00056164,120]
[320744329,1711543892583,-225.34,0.00056164,120]
[320744330,1711543892596,-531.34,0.00056164,120]
[320744331,1711543892609,-5109.09,0.00056164,120]
[320744332,1711543892623,-500.0,0.00056164,120]
[320744333,1711543892635,-7954.08,0.00056164,120]
[320744334,1711543892647,-1365.01,0.00056164,120]
[320744335,1711543892661,-3477.52,0.00056164,120]
[320744336,1711543892674,-500.0,0.00056164,120]
[320744337,1711543892688,-1944.43,0.00056164,120]
[320744338,1711543892701,-500.0,0.00056164,120]
[320744339,1711543892714,-500.0,0.00056164,120]
[320744340,1711543892727,-22670.34,0.00056164,120]
[320744341,1711543892741,-726.92,0.00056164,120]
[320744342,1711543892753,-15912.74,0.00056164,120]
[320744343,1711543892766,-500.0,0.00056164,120]
[320744344,1711543892778,-500.0,0.00056164,120]
[320744345,1711543892791,-5197.8,0.00056164,120]
[320744346,1711543892804,-638.57393687,0.00056164,120]
[320744347,1711543892816,-500.0,0.00056164,120]
[320744348,1711543892828,-500.0,0.00056164,120]
[320744349,1711543892841,-500.0,0.00056164,120]
[320744350,1711543892854,-500.0,0.00056164,120]
[320744351,1711543892867,-3753.0,0.00056164,120]
[320744352,1711543892879,-5025.57,0.00056164,120]
[320744353,1711543892892,-1032.54,0.00056164,120]
[320744354,1711543892904,-2884.81,0.00056164,120]
[320744355,1711543892916,-525.19,0.00056164,120]
[320744356,1711543892929,-500.0,0.00056164,120]
[320744357,1711543892941,-500.0,0.00056164,120]
[320744358,1711543892953,-500.0,0.00056164,120]
[320744359,1711543892965,-500.0,0.00056164,120]
[320744360,1711543892977,-832.53,0.00056164,120]
[320744361,1711543892989,-1554.43,0.00056164,120]
[320744362,1711543893002,-5602.14,0.00056164,120]
[320744363,1711543893014,-2733.23,0.00056164,120]
[320744364,1711543893026,-500.0,0.00056164,120]
[320744365,1711543893038,-1416.51,0.00056164,120]
[320744366,1711543893050,-508.12,0.00056164,120]
[320744367,1711543893062,-1108.32,0.00056164,120]
[320744368,1711543893074,-2082.72,0.00056164,120]
[320744369,1711543893087,-3295.4,0.00056164,120]
[320744370,1711543893100,-500.0,0.00056164,120]
[320744371,1711543893112,-3406.52,0.00056164,120]
[320744372,1711543893125,-79296.15,0.00056164,120]
[320744373,1711543893137,-500.0,0.00056164,120]
[320744374,1711543893149,-21230.92,0.00056164,120]
[320744375,1711543893161,-500.0,0.00056164,120]
[320744376,1711543893173,-786.05,0.00056164,120]
[320744377,1711543893185,-575.24,0.00056164,120]
[320744378,1711543893197,-500.0,0.00056164,120]
[320744379,1711543893209,-3470.89,0.00056164,120]
[320744380,1711543893221,-794.6,0.00056164,120]
[320744381,1711543893233,-1436.29,0.00056164,120]
[320744382,1711543893245,-500.0,0.00056164,120]
[320744383,1711543893257,-4270.02,0.00056164,120]
[320744384,1711543893269,-500.0,0.00056164,120]
[320744385,1711543893281,-13832.31,0.00056164,120]
[320744386,1711543893293,-2558.6,0.00056164,120]
[320744387,1711543893306,-9397.34,0.00056164,120]
[320744388,1711543893319,-500.0,0.00056164,120]
[320744389,1711543893331,-1488.59,0.00056164,120]
[320744390,1711543893344,-4828.26,0.00056164,120]
[320744391,1711543893358,-1008.05,0.00056164,120]
[320744392,1711543893370,-3178.59,0.00056164,120]
[320744393,1711543893381,-544.36,0.00056164,120]
[320744394,1711543893394,-500.0,0.00056164,120]
[320744395,1711543893406,-645.14,0.00056164,120]
[320744396,1711543893418,-3085.25,0.00056164,120]
[320744397,1711543893430,-751.31,0.00056164,120]
[320744398,1711543893442,-582.28,0.00056164,120]
[320744399,1711543893454,-2368.29,0.00056164,120]
[320744400,1711543893465,-1000.0,0.00056164,14]
[320744401,1711543893477,-2699.02,0.00056164,120]
[320744402,1711543893489,-5971.8,0.00056164,120]
[320744403,1711543893501,-3173.89,0.00056164,120]
[320744404,1711543893513,-500.0,0.00056164,120]
[320744405,1711543893526,-500.0,0.00056164,120]
[320744406,1711543893541,-527.56,0.00056164,120]
[320744407,1711543893553,-500.0,0.00056164,120]
[320744408,1711543893565,-5725.46,0.00056164,120]
[320744409,1711543893578,-500.0,0.00056164,120]
[320744410,1711543893590,-2196.71,0.00056164,120]
[320744411,1711543893604,-268.9,0.00056164,120]
[320744412,1711543893616,-500.0,0.00056164,120]
[320744413,1711543893629,-775.97,0.00056164,120]
[320744414,1711543893640,-4233.1,0.00056164,120]
[320744415,1711543893654,-500.0,0.00056164,120]
[320744416,1711543893666,-3326.63,0.00056164,120]
[320744417,1711543893679,-500.0,0.00056164,120]
[320744418,1711543893691,-14051.88,0.00056164,120]
[320744419,1711543893706,-500.0,0.00056164,120]
[320744420,1711543893718,-2626.24,0.00056164,120]
[320744421,1711543893732,-5132.44,0.00056164,120]
[320744422,1711543893745,-578.21,0.00056164,120]
[320744423,1711543893758,-1494.67,0.00056164,120]
[320744424,1711543893770,-1284.88,0.00056164,120]
[320744425,1711543893782,-5966.14,0.00056164,120]
[320744426,1711543893795,-500.0,0.00056164,120]
[320744427,1711543893807,-151.0,0.00056164,30]
[320744428,1711543893819,-3897.67,0.00056164,120]
[320744429,1711543893832,-500.0,0.00056164,120]
[320744430,1711543893844,-500.0,0.00056164,120]
[320744431,1711543893858,-500.0,0.00056164,120]
[320744432,1711543893870,-500.0,0.00056164,120]
[320744433,1711543893881,-638.55,0.00056164,120]
[320744434,1711543893893,-1510.54,0.00056164,120]
[320744435,1711543894198,-2090.88,0.00056164,120]
[320744436,1711543894209,-740.92,0.00056164,120]
[320744437,1711543894218,-456.08,0.00056164,120]
[320744438,1711543894228,-826.27,0.00056164,120]
[320744439,1711543894238,-1852.95,0.00056164,120]
[320744440,1711543894247,-6306.66,0.00056164,120]
[320744441,1711543894256,-1088.64,0.00056164,120]
[320744442,1711543894266,-5336.71,0.00056164,120]
[320744443,1711543894276,-2495.6,0.00056164,120]
[320744444,1711543894285,-3796.34,0.00056164,120]
[320744445,1711543894295,-3525.02,0.00056164,120]
[320744446,1711543894305,-333.96859994,0.00056164,120]
[320744447,1711543894315,-500.0,0.00056164,120]
[320744448,1711543894324,-52702.13,0.00056164,120]
[320744449,1711543894334,-4382.0,0.00056164,120]
[320744450,1711543894343,-6749.09,0.00056164,120]
[320744451,1711543894355,-5317.23,0.00056164,120]
[320744452,1711543894364,-500.0,0.00056164,120]
[320744453,1711543894374,-1020.49,0.00056164,120]
[320744454,1711543894383,-500.0,0.00056164,120]
[320744455,1711543894393,-9670.8,0.00056164,120]
[320744456,1711543894402,-216.115799,0.00056164,120]
[320744457,1711543894412,-2509.66,0.00056164,120]
[320744458,1711543894421,-500.0,0.00056164,120]
[320744459,1711543894432,-3800.06,0.00056164,120]
[320744460,1711543894442,-500.0,0.00056164,120]
[320744461,1711543894451,-216.115799,0.00056164,120]
[320744462,1711543894461,-43977.12,0.00056164,120]
[320744463,1711543894470,-500.0,0.00056164,120]
[320744464,1711543894479,-1033.96,0.00056164,120]
[320744465,1711543894489,-2224.07,0.00056164,120]
[320744466,1711543894499,-6046.1,0.00056164,120]
[320744467,1711543894509,-1400.16,0.00056164,120]
[320744468,1711543894518,-3536.01,0.00056164,120]
[320744469,1711543894528,-3289.32,0.00056164,120]
[320744470,1711543894537,-500.0,0.00056164,120]
[320744471,1711543894547,-500.0,0.00056164,120]